[Event "Titled Tuesday Blitz December 13 Late 2022"]
[White "Miller, Luke C"]
[Black "Bernat, David"]
[WhiteFideId "2096935"]
[BlackFideId "2099225"]
[WhiteElo "2499"]
[BlackElo "2307"]
[Result "1-0"]
[Round "02"]
[TimeControl "180+1"]
[Date "2022.12.14"]
[WhiteClock "0:00:08"]
[BlackClock "0:00:04"]

1. e4 {[%clk 0:03:00]}  c5 {[%clk 0:03:00]} 2. Nf3 {[%clk 0:03:00]}  g6 {[%clk 0:03:00]} 3. d4 {[%clk 0:02:58]}  cxd4 {[%clk 0:03:01]} 4. Qxd4 {[%clk 0:02:57]}  Nf6 {[%clk 0:03:02]} 5. Nc3 {[%clk 0:02:57]}  Nc6 {[%clk 0:03:02]} 6. Qa4 {[%clk 0:02:56]}  d6 {[%clk 0:03:03]} 7. e5 {[%clk 0:02:54]}  dxe5 {[%clk 0:03:04]} 8. Nxe5 {[%clk 0:02:55]}  Bg7 {[%clk 0:03:04]} 9. Nxc6 {[%clk 0:02:52]}  bxc6 {[%clk 0:03:05]} 10. Qxc6+ {[%clk 0:02:51]}  Bd7 {[%clk 0:03:05]} 11. Qf3 {[%clk 0:02:52]}  Rb8 {[%clk 0:03:01]} 12. Bc4 {[%clk 0:02:43]}  O-O {[%clk 0:02:55]} 13. O-O {[%clk 0:02:40]}  Qc7 {[%clk 0:02:56]} 14. Bb3 {[%clk 0:02:37]}  Bc6 {[%clk 0:02:56]} 15. Qg3 {[%clk 0:02:35]}  Qb7 {[%clk 0:02:50]} 16. Be3 {[%clk 0:02:14]}  a5 {[%clk 0:02:36]} 17. a4 {[%clk 0:01:54]}  Ne4 {[%clk 0:01:38]} 18. Nxe4 {[%clk 0:01:41]}  Bxe4 {[%clk 0:01:39]} 19. Rab1 {[%clk 0:01:35]}  Qc6 {[%clk 0:01:21]} 20. Rfc1 {[%clk 0:01:00]}  e6 {[%clk 0:01:07]} 21. f3 {[%clk 0:00:57]}  Bf5 {[%clk 0:01:01]} 22. Qf2 {[%clk 0:00:57]}  h5 {[%clk 0:00:47]} 23. h3 {[%clk 0:00:53]}  e5 {[%clk 0:00:21]} 24. g4 {[%clk 0:00:52]}  hxg4 {[%clk 0:00:22]} 25. hxg4 {[%clk 0:00:53]}  Be6 {[%clk 0:00:22]} 26. Bxe6 {[%clk 0:00:45]}  fxe6 {[%clk 0:00:23]} 27. Kg2 {[%clk 0:00:33]}  Qxa4 {[%clk 0:00:20]} 28. b3 {[%clk 0:00:22]}  Qc6 {[%clk 0:00:19]} 29. Bc5 {[%clk 0:00:20]}  Rf7 {[%clk 0:00:15]} 30. Re1 {[%clk 0:00:21]}  Rc8 {[%clk 0:00:12]} 31. b4 {[%clk 0:00:13]}  axb4 {[%clk 0:00:12]} 32. Bxb4 {[%clk 0:00:12]}  Qxc2 {[%clk 0:00:10]} 33. Rbd1 {[%clk 0:00:10]}  Qa4 {[%clk 0:00:08]} 34. Bd6 {[%clk 0:00:09]}  Rc2 {[%clk 0:00:06]} 35. Re2 {[%clk 0:00:09]}  Rxe2 {[%clk 0:00:06]} 36. Qxe2 {[%clk 0:00:10]}  Qf4 {[%clk 0:00:06]} 37. Re1 {[%clk 0:00:09]}  e4 {[%clk 0:00:05]} 38. Bxf4 {[%clk 0:00:08]}  Rxf4 {[%clk 0:00:04]} 39. fxe4 {[%clk 0:00:07]}  Bd4 {[%clk 0:00:05]} 40. Rf1 {[%clk 0:00:07]}  Rxf1 {[%clk 0:00:04]} 41. Kxf1 {[%clk 0:00:08]} 1-0


[Site "https://www.chess.com"]

[Event "Titled Tuesday Blitz December 13 Late 2022"]
[White "Miszler, Levente"]
[Black "Pace, Christopher"]
[WhiteFideId "763276"]
[BlackFideId "2610167"]
[WhiteElo "2176"]
[BlackElo "2275"]
[Result "0-1"]
[Round "02"]
[TimeControl "180+1"]
[Date "2022.12.14"]
[WhiteClock "0:00:14"]
[BlackClock "0:00:15"]

1. d4 {[%clk 0:03:00]}  Nf6 {[%clk 0:02:59]} 2. c4 {[%clk 0:02:56]}  e5 {[%clk 0:02:52]} 3. dxe5 {[%clk 0:02:52]}  Ng4 {[%clk 0:02:52]} 4. Nf3 {[%clk 0:02:45]}  Bc5 {[%clk 0:02:46]} 5. e3 {[%clk 0:02:45]}  Nc6 {[%clk 0:02:46]} 6. Nc3 {[%clk 0:02:39]}  O-O {[%clk 0:02:45]} 7. Be2 {[%clk 0:02:39]}  Re8 {[%clk 0:02:45]} 8. O-O {[%clk 0:02:37]}  Ngxe5 {[%clk 0:02:45]} 9. b3 {[%clk 0:02:33]}  Nxf3+ {[%clk 0:02:45]} 10. Bxf3 {[%clk 0:02:33]}  Ne5 {[%clk 0:02:45]} 11. Be2 {[%clk 0:02:33]}  a5 {[%clk 0:02:45]} 12. Bb2 {[%clk 0:02:33]}  Ra6 {[%clk 0:02:45]} 13. Nd5 {[%clk 0:02:29]}  Rh6 {[%clk 0:02:33]} 14. h3 {[%clk 0:02:17]}  d6 {[%clk 0:02:09]} 15. Bd4 {[%clk 0:02:11]}  Nc6 {[%clk 0:01:11]} 16. Bxc5 {[%clk 0:02:07]}  dxc5 {[%clk 0:01:11]} 17. Bg4 {[%clk 0:02:00]}  Bxg4 {[%clk 0:01:00]} 18. Qxg4 {[%clk 0:02:01]}  Ne5 {[%clk 0:01:01]} 19. Qf4 {[%clk 0:01:56]}  c6 {[%clk 0:00:58]} 20. Nc3 {[%clk 0:01:35]}  Rf6 {[%clk 0:00:48]} 21. Qh4 {[%clk 0:01:27]}  Nf3+ {[%clk 0:00:44]} 22. gxf3 {[%clk 0:01:21]}  Rg6+ {[%clk 0:00:44]} 23. Qg4 {[%clk 0:01:21]}  Rxg4+ {[%clk 0:00:38]} 24. fxg4 {[%clk 0:01:22]}  Qf6 {[%clk 0:00:34]} 25. Ne2 {[%clk 0:01:17]}  Qf3 {[%clk 0:00:31]} 26. Ng3 {[%clk 0:01:17]}  Rd8 {[%clk 0:00:31]} 27. a3 {[%clk 0:00:55]}  Rd2 {[%clk 0:00:31]} 28. b4 {[%clk 0:00:55]}  axb4 {[%clk 0:00:23]} 29. axb4 {[%clk 0:00:56]}  g6 {[%clk 0:00:24]} 30. bxc5 {[%clk 0:00:53]}  h5 {[%clk 0:00:23]} 31. gxh5 {[%clk 0:00:52]}  gxh5 {[%clk 0:00:23]} 32. e4 {[%clk 0:00:26]}  h4 {[%clk 0:00:20]} 33. Ra8+ {[%clk 0:00:21]}  Kh7 {[%clk 0:00:20]} 34. Nf5 {[%clk 0:00:21]}  Qxh3 {[%clk 0:00:20]} 35. Rf8 {[%clk 0:00:19]}  Qg4+ {[%clk 0:00:17]} 36. Kh1 {[%clk 0:00:19]}  Qxe4+ {[%clk 0:00:17]} 37. Kh2 {[%clk 0:00:13]}  Qxf5 {[%clk 0:00:16]} 38. Rg1 {[%clk 0:00:14]}  Qxf2+ {[%clk 0:00:15]} 39. Kh3 {[%clk 0:00:14]}  Qh2+ {[%clk 0:00:15]} 40. Kg4 {[%clk 0:00:14]}  Qxg1+ {[%clk 0:00:15]} 41. Kh5 {[%clk 0:00:14]}  Qg6+ {[%clk 0:00:14]} 42. Kxh4 {[%clk 0:00:14]}  Rh2# {[%clk 0:00:15]} 0-1


[Site "https://www.chess.com"]

[Event "Titled Tuesday Blitz December 13 Late 2022"]
[White "Moroni, Luca Jr"]
[Black "Pein, Jonathan"]
[WhiteFideId "865834"]
[BlackFideId "417092"]
[WhiteElo "2573"]
[BlackElo "2225"]
[Result "1-0"]
[Round "02"]
[TimeControl "180+1"]
[Date "2022.12.14"]
[WhiteClock "0:00:37"]
[BlackClock "0:00:12"]

1. d4 {[%clk 0:03:00]}  d6 {[%clk 0:02:59]} 2. e4 {[%clk 0:03:00]}  Nf6 {[%clk 0:02:58]} 3. Nc3 {[%clk 0:03:00]}  Nc6 {[%clk 0:02:57]} 4. Nf3 {[%clk 0:02:57]}  Bg4 {[%clk 0:02:58]} 5. d5 {[%clk 0:02:50]}  Ne5 {[%clk 0:02:45]} 6. Bb5+ {[%clk 0:02:44]}  c6 {[%clk 0:02:19]} 7. dxc6 {[%clk 0:02:39]}  Nxc6 {[%clk 0:00:58]} 8. h3 {[%clk 0:02:36]}  Bd7 {[%clk 0:00:53]} 9. O-O {[%clk 0:02:35]}  g6 {[%clk 0:00:53]} 10. Bg5 {[%clk 0:02:32]}  Bg7 {[%clk 0:00:53]} 11. Qd2 {[%clk 0:02:33]}  O-O {[%clk 0:00:54]} 12. Bh6 {[%clk 0:02:30]}  Rc8 {[%clk 0:00:54]} 13. Bxg7 {[%clk 0:02:30]}  Kxg7 {[%clk 0:00:54]} 14. Rfe1 {[%clk 0:02:31]}  Qa5 {[%clk 0:00:52]} 15. Rad1 {[%clk 0:02:29]}  Rfd8 {[%clk 0:00:48]} 16. Bxc6 {[%clk 0:02:29]}  Bxc6 {[%clk 0:00:46]} 17. Nd4 {[%clk 0:02:24]}  Bd7 {[%clk 0:00:38]} 18. a3 {[%clk 0:02:20]}  b5 {[%clk 0:00:31]} 19. e5 {[%clk 0:02:13]}  dxe5 {[%clk 0:00:31]} 20. Rxe5 {[%clk 0:02:14]}  e6 {[%clk 0:00:15]} 21. Qe1 {[%clk 0:02:08]}  Be8 {[%clk 0:00:14]} 22. Rd3 {[%clk 0:01:42]}  a6 {[%clk 0:00:14]} 23. Qd2 {[%clk 0:01:41]}  Qc7 {[%clk 0:00:13]} 24. Re1 {[%clk 0:01:38]}  Bc6 {[%clk 0:00:14]} 25. Rd1 {[%clk 0:01:30]}  Bb7 {[%clk 0:00:14]} 26. Nxe6+ {[%clk 0:01:29]}  fxe6 {[%clk 0:00:15]} 27. Rxd8 {[%clk 0:01:29]}  Qc6 {[%clk 0:00:15]} 28. Rd7+ {[%clk 0:01:19]}  Kg8 {[%clk 0:00:14]} 29. Rxb7 {[%clk 0:01:18]}  Qxb7 {[%clk 0:00:14]} 30. Qd4 {[%clk 0:01:15]}  Qf7 {[%clk 0:00:12]} 31. Re1 {[%clk 0:01:11]}  Rf8 {[%clk 0:00:12]} 32. Qe5 {[%clk 0:01:09]}  Re8 {[%clk 0:00:10]} 33. Rd1 {[%clk 0:01:08]}  Nd5 {[%clk 0:00:09]} 34. Ne4 {[%clk 0:01:02]}  Rf8 {[%clk 0:00:09]} 35. b3 {[%clk 0:00:58]}  Qf5 {[%clk 0:00:09]} 36. Qxf5 {[%clk 0:00:57]}  exf5 {[%clk 0:00:10]} 37. Rxd5 {[%clk 0:00:47]}  fxe4 {[%clk 0:00:11]} 38. Rc5 {[%clk 0:00:48]}  Rf6 {[%clk 0:00:08]} 39. Kf1 {[%clk 0:00:47]}  e3 {[%clk 0:00:08]} 40. f3 {[%clk 0:00:48]}  Rd6 {[%clk 0:00:08]} 41. Ke2 {[%clk 0:00:47]}  Rd2+ {[%clk 0:00:09]} 42. Kxe3 {[%clk 0:00:47]}  Rxg2 {[%clk 0:00:09]} 43. Rc6 {[%clk 0:00:45]}  Kg7 {[%clk 0:00:10]} 44. Kf4 {[%clk 0:00:41]}  h5 {[%clk 0:00:08]} 45. h4 {[%clk 0:00:40]}  Rh2 {[%clk 0:00:06]} 46. Kg3 {[%clk 0:00:40]}  Rd2 {[%clk 0:00:06]} 47. b4 {[%clk 0:00:39]}  Kf7 {[%clk 0:00:04]} 48. Kf4 {[%clk 0:00:37]}  Rd4+ {[%clk 0:00:03]} 49. Kg5 {[%clk 0:00:36]}  Rd5+ {[%clk 0:00:03]} 50. Kh6 {[%clk 0:00:37]}  Rf5 {[%clk 0:00:03]} 51. Rxg6 {[%clk 0:00:34]}  Rxf3 {[%clk 0:00:04]} 52. Rxa6 {[%clk 0:00:34]}  Rf6+ {[%clk 0:00:04]} 53. Rxf6+ {[%clk 0:00:34]}  Kxf6 {[%clk 0:00:04]} 54. Kxh5 {[%clk 0:00:34]}  Kf5 {[%clk 0:00:05]} 55. Kh6 {[%clk 0:00:34]}  Kf6 {[%clk 0:00:06]} 56. h5 {[%clk 0:00:35]}  Ke5 {[%clk 0:00:06]} 57. Kg5 {[%clk 0:00:36]}  Kd5 {[%clk 0:00:07]} 58. h6 {[%clk 0:00:36]}  Kc4 {[%clk 0:00:08]} 59. h7 {[%clk 0:00:37]}  Kc3 {[%clk 0:00:09]} 60. h8=Q+ {[%clk 0:00:38]}  Kxc2 {[%clk 0:00:10]} 61. Qe5 {[%clk 0:00:37]}  Kb3 {[%clk 0:00:11]} 62. Qxb5 {[%clk 0:00:37]}  Kxa3 {[%clk 0:00:12]} 63. Qc5 {[%clk 0:00:37]} 1-0


[Site "https://www.chess.com"]

[Event "Titled Tuesday Blitz December 13 Late 2022"]
[White "O`Gorman, Tom"]
[Black "Tang, Andrew"]
[WhiteFideId "2508249"]
[BlackFideId "2059630"]
[WhiteElo "2271"]
[BlackElo "2582"]
[Result "0-1"]
[Round "02"]
[TimeControl "180+1"]
[Date "2022.12.13"]
[WhiteClock "0:01:38"]
[BlackClock "0:01:53"]

1. d4 {[%clk 0:03:00]}  d5 {[%clk 0:02:59]} 2. c4 {[%clk 0:03:01]}  e6 {[%clk 0:02:59]} 3. Nc3 {[%clk 0:03:01]}  Be7 {[%clk 0:02:59]} 4. cxd5 {[%clk 0:03:01]}  exd5 {[%clk 0:03:00]} 5. Bf4 {[%clk 0:03:01]}  c6 {[%clk 0:03:01]} 6. e3 {[%clk 0:03:01]}  Bf5 {[%clk 0:03:01]} 7. g4 {[%clk 0:02:59]}  Be6 {[%clk 0:02:59]} 8. h4 {[%clk 0:02:58]}  Nd7 {[%clk 0:02:59]} 9. Bd3 {[%clk 0:02:55]}  Bxh4 {[%clk 0:02:32]} 10. Qb3 {[%clk 0:02:40]}  g5 {[%clk 0:02:27]} 11. Bh2 {[%clk 0:02:33]}  Qf6 {[%clk 0:02:14]} 12. Qc2 {[%clk 0:02:30]}  Bxg4 {[%clk 0:02:11]} 13. a4 {[%clk 0:02:08]}  Ne7 {[%clk 0:02:03]} 14. b4 {[%clk 0:01:57]}  Ng6 {[%clk 0:02:01]} 15. b5 {[%clk 0:01:54]}  O-O {[%clk 0:02:00]} 16. Rb1 {[%clk 0:01:42]}  Rfe8 {[%clk 0:01:54]} 17. Kf1 {[%clk 0:01:38]}  Rxe3 {[%clk 0:01:53]} 0-1


[Site "https://www.chess.com"]

[Event "Titled Tuesday Blitz December 13 Late 2022"]
[White "Omelja, Artem"]
[Black "Yuan, Qingyu"]
[WhiteFideId "14119846"]
[BlackFideId "8609772"]
[WhiteElo "2533"]
[BlackElo "2789"]
[Result "1-0"]
[Round "02"]
[TimeControl "180+1"]
[Date "2022.12.14"]
[WhiteClock "0:00:05"]
[BlackClock "0:00:03"]

1. c4 {[%clk 0:02:58]}  Nf6 {[%clk 0:02:59]} 2. g3 {[%clk 0:02:56]}  e6 {[%clk 0:02:59]} 3. Bg2 {[%clk 0:02:56]}  d5 {[%clk 0:02:59]} 4. Nf3 {[%clk 0:02:55]}  dxc4 {[%clk 0:02:57]} 5. Qa4+ {[%clk 0:02:53]}  Nbd7 {[%clk 0:02:56]} 6. Qxc4 {[%clk 0:02:51]}  c5 {[%clk 0:02:52]} 7. Qc2 {[%clk 0:02:45]}  a6 {[%clk 0:02:51]} 8. O-O {[%clk 0:02:38]}  b5 {[%clk 0:02:47]} 9. Ne5 {[%clk 0:02:32]}  Nd5 {[%clk 0:02:46]} 10. Nxd7 {[%clk 0:02:29]}  Bxd7 {[%clk 0:02:46]} 11. b3 {[%clk 0:02:28]}  Be7 {[%clk 0:02:31]} 12. Bb2 {[%clk 0:02:24]}  O-O {[%clk 0:02:27]} 13. Nc3 {[%clk 0:02:24]}  Bc6 {[%clk 0:02:14]} 14. Ne4 {[%clk 0:02:11]}  Rc8 {[%clk 0:01:18]} 15. a3 {[%clk 0:01:39]}  Bb7 {[%clk 0:01:09]} 16. Rac1 {[%clk 0:01:38]}  Qb6 {[%clk 0:01:07]} 17. Qb1 {[%clk 0:01:34]}  Rfd8 {[%clk 0:01:07]} 18. Qa1 {[%clk 0:01:32]}  f6 {[%clk 0:01:07]} 19. d3 {[%clk 0:01:25]}  e5 {[%clk 0:00:47]} 20. Rc2 {[%clk 0:01:24]}  Nc7 {[%clk 0:00:39]} 21. Rfc1 {[%clk 0:01:22]}  Ne6 {[%clk 0:00:39]} 22. Bh3 {[%clk 0:01:07]}  Bd5 {[%clk 0:00:34]} 23. b4 {[%clk 0:01:01]}  c4 {[%clk 0:00:34]} 24. Nc3 {[%clk 0:00:55]}  Ba8 {[%clk 0:00:33]} 25. dxc4 {[%clk 0:00:49]}  Rxc4 {[%clk 0:00:32]} 26. e4 {[%clk 0:00:32]}  Nd4 {[%clk 0:00:30]} 27. Qa2 {[%clk 0:00:29]}  Nxc2 {[%clk 0:00:28]} 28. Rxc2 {[%clk 0:00:27]}  Kh8 {[%clk 0:00:27]} 29. Bf1 {[%clk 0:00:24]}  Rc7 {[%clk 0:00:21]} 30. Re2 {[%clk 0:00:22]}  h6 {[%clk 0:00:19]} 31. Nd5 {[%clk 0:00:21]}  Bxd5 {[%clk 0:00:19]} 32. exd5 {[%clk 0:00:22]}  Rdc8 {[%clk 0:00:17]} 33. Qb3 {[%clk 0:00:21]}  Bd6 {[%clk 0:00:16]} 34. Bh3 {[%clk 0:00:17]}  Rd8 {[%clk 0:00:15]} 35. Be6 {[%clk 0:00:17]}  Rc4 {[%clk 0:00:11]} 36. Qd3 {[%clk 0:00:15]}  Qc7 {[%clk 0:00:10]} 37. Qg6 {[%clk 0:00:13]}  Rc1+ {[%clk 0:00:06]} 38. Bxc1 {[%clk 0:00:11]}  Qxc1+ {[%clk 0:00:07]} 39. Kg2 {[%clk 0:00:11]}  Qg5 {[%clk 0:00:08]} 40. Qf7 {[%clk 0:00:10]}  Bf8 {[%clk 0:00:04]} 41. Rc2 {[%clk 0:00:09]}  Bd6 {[%clk 0:00:04]} 42. Rc6 {[%clk 0:00:09]}  h5 {[%clk 0:00:04]} 43. Rxd6 {[%clk 0:00:09]}  Rxd6 {[%clk 0:00:04]} 44. Qf8+ {[%clk 0:00:10]}  Kh7 {[%clk 0:00:04]} 45. Qxd6 {[%clk 0:00:11]}  Qg6 {[%clk 0:00:05]} 46. Bh3 {[%clk 0:00:03]}  Qe4+ {[%clk 0:00:05]} 47. Kg1 {[%clk 0:00:04]}  Qd3 {[%clk 0:00:03]} 48. Bf1 {[%clk 0:00:04]}  Qxa3 {[%clk 0:00:04]} 49. Qc5 {[%clk 0:00:03]}  a5 {[%clk 0:00:02]} 50. d6 {[%clk 0:00:04]}  axb4 {[%clk 0:00:02]} 51. d7 {[%clk 0:00:04]}  Qa8 {[%clk 0:00:02]} 52. Qc8 {[%clk 0:00:04]}  Qe4 {[%clk 0:00:02]} 53. d8=Q {[%clk 0:00:04]}  f5 {[%clk 0:00:03]} 54. Qh8+ {[%clk 0:00:04]}  Kg6 {[%clk 0:00:03]} 55. Qce8+ {[%clk 0:00:05]}  Kg5 {[%clk 0:00:03]} 56. Qxg7# {[%clk 0:00:05]} 1-0


[Site "https://www.chess.com"]

[Event "Titled Tuesday Blitz December 13 Late 2022"]
[White "Osmonbekov, Talaibek"]
[Black "Jimenez Almeida, Luis David"]
[WhiteFideId "2017253"]
[BlackFideId "22242244"]
[WhiteElo "2135"]
[BlackElo "2158"]
[Result "0-1"]
[Round "02"]
[TimeControl "180+1"]
[Date "2022.12.14"]
[WhiteClock "0:00:12"]
[BlackClock "0:00:15"]

1. d4 {[%clk 0:03:00]}  g6 {[%clk 0:02:59]} 2. Bf4 {[%clk 0:03:01]}  Bg7 {[%clk 0:02:59]} 3. Nc3 {[%clk 0:03:01]}  d5 {[%clk 0:02:58]} 4. e3 {[%clk 0:03:02]}  Nf6 {[%clk 0:02:58]} 5. h4 {[%clk 0:03:02]}  h5 {[%clk 0:02:54]} 6. Nf3 {[%clk 0:03:03]}  a6 {[%clk 0:02:51]} 7. Ne5 {[%clk 0:02:58]}  b5 {[%clk 0:02:45]} 8. f3 {[%clk 0:02:57]}  Bb7 {[%clk 0:02:38]} 9. Bd3 {[%clk 0:02:53]}  Nbd7 {[%clk 0:02:32]} 10. Qd2 {[%clk 0:02:51]}  Nb6 {[%clk 0:02:26]} 11. Nxg6 {[%clk 0:02:42]}  fxg6 {[%clk 0:02:25]} 12. Bxg6+ {[%clk 0:02:43]}  Kf8 {[%clk 0:02:24]} 13. O-O-O {[%clk 0:02:43]}  b4 {[%clk 0:02:20]} 14. Ne2 {[%clk 0:02:37]}  a5 {[%clk 0:02:19]} 15. Ng3 {[%clk 0:02:34]}  Nc4 {[%clk 0:02:15]} 16. Qf2 {[%clk 0:02:27]}  a4 {[%clk 0:02:11]} 17. e4 {[%clk 0:02:22]}  Bh6 {[%clk 0:01:47]} 18. Bg5 {[%clk 0:02:17]}  Bxg5+ {[%clk 0:00:58]} 19. hxg5 {[%clk 0:02:16]}  Ng8 {[%clk 0:00:55]} 20. Nxh5 {[%clk 0:02:09]}  Qd6 {[%clk 0:00:53]} 21. e5 {[%clk 0:01:46]}  Qxg6 {[%clk 0:00:49]} 22. Nf4 {[%clk 0:01:46]}  Qf5 {[%clk 0:00:49]} 23. Ne6+ {[%clk 0:01:30]}  Qxe6 {[%clk 0:00:49]} 24. Rxh8 {[%clk 0:01:30]}  b3 {[%clk 0:00:45]} 25. a3 {[%clk 0:01:27]}  Qf5 {[%clk 0:00:37]} 26. Rd3 {[%clk 0:01:22]}  bxc2 {[%clk 0:00:35]} 27. Qxc2 {[%clk 0:01:15]}  Qxg5+ {[%clk 0:00:35]} 28. f4 {[%clk 0:01:06]}  Qg7 {[%clk 0:00:32]} 29. Rdh3 {[%clk 0:01:02]}  Bc6 {[%clk 0:00:27]} 30. Qf5+ {[%clk 0:00:37]}  Qf7 {[%clk 0:00:20]} 31. Qg5 {[%clk 0:00:36]}  Qg7 {[%clk 0:00:15]} 32. Qf5+ {[%clk 0:00:34]}  Ke8 {[%clk 0:00:16]} 33. R3h7 {[%clk 0:00:32]}  Qxg2 {[%clk 0:00:16]} 34. Qf7+ {[%clk 0:00:14]}  Kd7 {[%clk 0:00:16]} 35. Qf5+ {[%clk 0:00:14]}  Kd8 {[%clk 0:00:16]} 36. Qf8+ {[%clk 0:00:13]}  Kd7 {[%clk 0:00:16]} 37. Qf5+ {[%clk 0:00:13]}  Kd8 {[%clk 0:00:17]} 38. Rxg8+ {[%clk 0:00:13]}  Qxg8 {[%clk 0:00:16]} 39. Qh3 {[%clk 0:00:13]}  Qg1+ {[%clk 0:00:15]} 40. Kc2 {[%clk 0:00:13]}  Qf2+ {[%clk 0:00:15]} 41. Kd3 {[%clk 0:00:12]}  Qd2# {[%clk 0:00:15]} 0-1


[Site "https://www.chess.com"]

[Event "Titled Tuesday Blitz December 13 Late 2022"]
[White "Ozates, Tuna"]
[Black "Prieto Aranguren, Alain"]
[WhiteFideId "6354521"]
[BlackFideId "2268906"]
[WhiteElo "2151"]
[BlackElo "2209"]
[Result "1-0"]
[Round "02"]
[TimeControl "180+1"]
[Date "2022.12.14"]
[WhiteClock "0:00:49"]
[BlackClock "0:00:45"]

1. d4 {[%clk 0:02:59]}  d5 {[%clk 0:02:52]} 2. Bf4 {[%clk 0:03:00]}  c5 {[%clk 0:02:50]} 3. e3 {[%clk 0:03:00]}  cxd4 {[%clk 0:02:49]} 4. exd4 {[%clk 0:03:00]}  Nc6 {[%clk 0:02:48]} 5. c3 {[%clk 0:03:00]}  Nf6 {[%clk 0:02:48]} 6. Bd3 {[%clk 0:02:59]}  g6 {[%clk 0:02:47]} 7. Nf3 {[%clk 0:02:59]}  Bf5 {[%clk 0:02:46]} 8. Bxf5 {[%clk 0:02:53]}  gxf5 {[%clk 0:02:46]} 9. O-O {[%clk 0:02:53]}  e6 {[%clk 0:02:46]} 10. Ne5 {[%clk 0:02:52]}  Bd6 {[%clk 0:02:44]} 11. Nd2 {[%clk 0:02:51]}  Rg8 {[%clk 0:02:43]} 12. Kh1 {[%clk 0:02:50]}  Qc7 {[%clk 0:02:38]} 13. Qe2 {[%clk 0:02:35]}  O-O-O {[%clk 0:02:36]} 14. b4 {[%clk 0:02:35]}  Ng4 {[%clk 0:02:32]} 15. Nxc6 {[%clk 0:02:27]}  Bxf4 {[%clk 0:02:25]} 16. Nxa7+ {[%clk 0:02:27]}  Kb8 {[%clk 0:02:20]} 17. Nb5 {[%clk 0:02:27]}  Qe7 {[%clk 0:02:19]} 18. g3 {[%clk 0:02:19]}  Nxh2 {[%clk 0:02:13]} 19. Nf3 {[%clk 0:01:28]}  Nxf3 {[%clk 0:02:01]} 20. Qxf3 {[%clk 0:01:28]}  Rg4 {[%clk 0:02:00]} 21. Rg1 {[%clk 0:01:13]}  Rdg8 {[%clk 0:01:54]} 22. Rg2 {[%clk 0:01:10]}  Qf6 {[%clk 0:01:17]} 23. Rh2 {[%clk 0:01:08]}  Bxg3 {[%clk 0:01:08]} 24. fxg3 {[%clk 0:01:08]}  Rxg3 {[%clk 0:01:07]} 25. Qf4+ {[%clk 0:01:08]}  Ka8 {[%clk 0:01:06]} 26. Qc7 {[%clk 0:00:57]}  Qg5 {[%clk 0:00:47]} 27. Qa5+ {[%clk 0:00:50]}  Kb8 {[%clk 0:00:47]} 28. Qa7+ {[%clk 0:00:50]}  Kc8 {[%clk 0:00:47]} 29. Qa8+ {[%clk 0:00:51]}  Kd7 {[%clk 0:00:46]} 30. Qxb7+ {[%clk 0:00:52]}  Ke8 {[%clk 0:00:46]} 31. Nd6+ {[%clk 0:00:51]}  Kd8 {[%clk 0:00:45]} 32. Nxf7+ {[%clk 0:00:49]} 1-0


[Site "https://www.chess.com"]

[Event "Titled Tuesday Blitz December 13 Late 2022"]
[White "Pasti, Aron"]
[Black "Sourath Biswas"]
[WhiteFideId "785857"]
[BlackFideId "35091484"]
[WhiteElo "2250"]
[BlackElo "2164"]
[Result "1-0"]
[Round "02"]
[TimeControl "180+1"]
[Date "2022.12.14"]
[WhiteClock "0:00:18"]
[BlackClock "0:01:11"]

1. e4 {[%clk 0:03:00]}  c5 {[%clk 0:02:58]} 2. Nf3 {[%clk 0:03:00]}  d6 {[%clk 0:02:58]} 3. d4 {[%clk 0:03:00]}  cxd4 {[%clk 0:02:59]} 4. Nxd4 {[%clk 0:03:01]}  Nf6 {[%clk 0:03:00]} 5. Nc3 {[%clk 0:03:01]}  a6 {[%clk 0:03:00]} 6. h3 {[%clk 0:03:01]}  e5 {[%clk 0:03:01]} 7. Nde2 {[%clk 0:03:01]}  Be7 {[%clk 0:03:01]} 8. g4 {[%clk 0:03:01]}  Be6 {[%clk 0:02:55]} 9. Bg2 {[%clk 0:03:01]}  Nbd7 {[%clk 0:02:53]} 10. O-O {[%clk 0:03:00]}  h5 {[%clk 0:02:48]} 11. g5 {[%clk 0:02:59]}  Nh7 {[%clk 0:02:49]} 12. h4 {[%clk 0:02:52]}  f6 {[%clk 0:02:46]} 13. f4 {[%clk 0:02:29]}  Bg4 {[%clk 0:02:42]} 14. g6 {[%clk 0:02:09]}  Nhf8 {[%clk 0:02:18]} 15. f5 {[%clk 0:02:09]}  Nb6 {[%clk 0:02:15]} 16. Bf3 {[%clk 0:02:03]}  Qc7 {[%clk 0:02:12]} 17. Be3 {[%clk 0:01:50]}  Nfd7 {[%clk 0:02:10]} 18. Nd5 {[%clk 0:01:43]}  Nxd5 {[%clk 0:02:10]} 19. Qxd5 {[%clk 0:01:44]}  Qc6 {[%clk 0:02:09]} 20. Qf7+ {[%clk 0:01:41]}  Kd8 {[%clk 0:02:09]} 21. Qxg7 {[%clk 0:01:40]}  Bxf3 {[%clk 0:01:52]} 22. Qxh8+ {[%clk 0:00:56]}  Kc7 {[%clk 0:01:52]} 23. Qxa8 {[%clk 0:00:54]}  Qxe4 {[%clk 0:01:53]} 24. Rxf3 {[%clk 0:00:51]}  Qxf3 {[%clk 0:01:53]} 25. Bf2 {[%clk 0:00:49]}  Qxe2 {[%clk 0:01:50]} 26. Qg8 {[%clk 0:00:45]}  Qg4+ {[%clk 0:01:50]} 27. Kh2 {[%clk 0:00:37]}  Qf4+ {[%clk 0:01:31]} 28. Bg3 {[%clk 0:00:36]}  Qxf5 {[%clk 0:01:31]} 29. Qc4+ {[%clk 0:00:31]}  Nc5 {[%clk 0:01:21]} 30. g7 {[%clk 0:00:32]}  d5 {[%clk 0:01:19]} 31. Qxd5 {[%clk 0:00:24]}  Qxc2+ {[%clk 0:01:16]} 32. Qg2 {[%clk 0:00:21]}  Qh7 {[%clk 0:01:16]} 33. g8=Q {[%clk 0:00:20]}  Qf5 {[%clk 0:01:15]} 34. Qg7 {[%clk 0:00:18]}  Qe6 {[%clk 0:01:11]} 35. Qh3 {[%clk 0:00:16]}  Qd6 {[%clk 0:01:12]} 36. Rd1 {[%clk 0:00:16]}  Qxd1 {[%clk 0:01:11]} 37. Qxe7+ {[%clk 0:00:16]}  Kb6 {[%clk 0:01:12]} 38. Bf2 {[%clk 0:00:16]}  Qc2 {[%clk 0:01:05]} 39. Qxc5+ {[%clk 0:00:17]}  Qxc5 {[%clk 0:01:06]} 40. Bxc5+ {[%clk 0:00:17]}  Kxc5 {[%clk 0:01:07]} 41. Qc3+ {[%clk 0:00:17]}  Kd5 {[%clk 0:01:07]} 42. Qf3+ {[%clk 0:00:17]}  e4 {[%clk 0:01:07]} 43. Qxh5+ {[%clk 0:00:18]}  Kd4 {[%clk 0:01:07]} 44. Qe2 {[%clk 0:00:18]}  f5 {[%clk 0:01:07]} 45. Kg3 {[%clk 0:00:18]}  Ke5 {[%clk 0:01:07]} 46. Qe3 {[%clk 0:00:19]}  Kd5 {[%clk 0:01:08]} 47. Kf4 {[%clk 0:00:19]}  Ke6 {[%clk 0:01:09]} 48. h5 {[%clk 0:00:19]}  Kf6 {[%clk 0:01:10]} 49. h6 {[%clk 0:00:19]}  Kg6 {[%clk 0:01:10]} 50. Qg3+ {[%clk 0:00:19]}  Kh7 {[%clk 0:01:11]} 51. Qg7# {[%clk 0:00:18]} 1-0


[Site "https://www.chess.com"]